[Event "Titled Tuesday Blitz June 13 Late 2023"]
[White "Bueno, Alfeu Junior Varela"]
[Black "Petesch, Gabriel"]
[WhiteFideId "2108879"]
[BlackFideId "2032465"]
[WhiteElo "2175"]
[BlackElo "2374"]
[Result "0-1"]
[Round "9"]
[TimeControl "180+2"]
[Date "2023.06.13"]
[WhiteClock "0:00:00"]
[BlackClock "0:00:02"]
[Board "74"]

1. e4 {[%clk 0:02:58]}  d5 {[%clk 0:02:44]} 2. exd5 {[%clk 0:02:38]}  Qxd5 {[%clk 0:02:45]} 3. Nc3 {[%clk 0:02:38]}  Qd6 {[%clk 0:02:41]} 4. d4 {[%clk 0:02:36]}  Nf6 {[%clk 0:02:40]} 5. Nf3 {[%clk 0:02:37]}  g6 {[%clk 0:02:40]} 6. Bc4 {[%clk 0:02:34]}  Bg7 {[%clk 0:02:40]} 7. Ne5 {[%clk 0:02:32]}  O-O {[%clk 0:02:40]} 8. Be3 {[%clk 0:02:31]}  c6 {[%clk 0:02:33]} 9. Qe2 {[%clk 0:02:21]}  Be6 {[%clk 0:02:26]} 10. O-O-O {[%clk 0:02:19]}  Nbd7 {[%clk 0:02:24]} 11. Bf4 {[%clk 0:02:12]}  Bxc4 {[%clk 0:02:23]} 12. Qxc4 {[%clk 0:02:12]}  Nh5 {[%clk 0:02:02]} 13. g3 {[%clk 0:01:24]}  Nxf4 {[%clk 0:01:45]} 14. gxf4 {[%clk 0:01:24]}  Nb6 {[%clk 0:01:42]} 15. Qd3 {[%clk 0:01:17]}  Nd5 {[%clk 0:01:42]} 16. Ne4 {[%clk 0:01:13]}  Qe6 {[%clk 0:01:29]} 17. Nc5 {[%clk 0:00:45]}  Qf6 {[%clk 0:00:44]} 18. f5 {[%clk 0:00:42]}  Qxf5 {[%clk 0:00:17]} 19. Qxf5 {[%clk 0:00:38]}  gxf5 {[%clk 0:00:18]} 20. Nxb7 {[%clk 0:00:30]}  f6 {[%clk 0:00:13]} 21. Nc4 {[%clk 0:00:13]}  e5 {[%clk 0:00:08]} 22. Rhe1 {[%clk 0:00:11]}  e4 {[%clk 0:00:06]} 23. Nba5 {[%clk 0:00:11]}  Rab8 {[%clk 0:00:06]} 24. Nxc6 {[%clk 0:00:10]}  Bh6+ {[%clk 0:00:05]} 25. Kb1 {[%clk 0:00:10]}  Nc3+ {[%clk 0:00:05]} 26. Ka1 {[%clk 0:00:10]}  Nxd1 {[%clk 0:00:04]} 27. Rxd1 {[%clk 0:00:11]}  Rb7 {[%clk 0:00:04]} 28. Nd6 {[%clk 0:00:10]}  Rd7 {[%clk 0:00:03]} 29. Nxf5 {[%clk 0:00:10]}  Bf4 {[%clk 0:00:03]} 30. c4 {[%clk 0:00:08]}  Re8 {[%clk 0:00:04]} 31. d5 {[%clk 0:00:08]}  e3 {[%clk 0:00:04]} 32. fxe3 {[%clk 0:00:08]}  Bxe3 {[%clk 0:00:05]} 33. Re1 {[%clk 0:00:08]}  Re4 {[%clk 0:00:03]} 34. Rxe3 {[%clk 0:00:07]}  Rf4 {[%clk 0:00:03]} 35. Nfe7+ {[%clk 0:00:07]}  Kf7 {[%clk 0:00:03]} 36. a3 {[%clk 0:00:08]}  Rxc4 {[%clk 0:00:03]} 37. Nf5 {[%clk 0:00:04]}  Rf4 {[%clk 0:00:02]} 38. Nfd4 {[%clk 0:00:03]}  Rxd5 {[%clk 0:00:02]} 39. Rd3 {[%clk 0:00:03]}  Rh4 {[%clk 0:00:01]} 40. Rd2 {[%clk 0:00:02]}  Rh3 {[%clk 0:00:01]} 41. Rf2 {[%clk 0:00:00]}  a5 {[%clk 0:00:02]} 0-1


[Site "https://www.chess.com"]

[Event "Titled Tuesday Blitz June 13 Late 2023"]
[White "Arias Igual, Alejandro"]
[Black "Osmak, Yuliia"]
[WhiteFideId "2254905"]
[BlackFideId "14101602"]
[WhiteElo "2179"]
[BlackElo "2303"]
[Result "0-1"]
[Round "9"]
[TimeControl "180+2"]
[Date "2023.06.13"]
[WhiteClock "0:00:00"]
[BlackClock "0:01:48"]
[Board "76"]

1. e4 {[%clk 0:03:00]}  c6 {[%clk 0:02:58]} 2. d4 {[%clk 0:02:58]}  d5 {[%clk 0:02:59]} 3. exd5 {[%clk 0:02:59]}  cxd5 {[%clk 0:02:59]} 4. Bd3 {[%clk 0:02:59]}  Nc6 {[%clk 0:02:58]} 5. c3 {[%clk 0:02:59]}  Nf6 {[%clk 0:02:58]} 6. h3 {[%clk 0:02:58]}  g6 {[%clk 0:02:57]} 7. Nf3 {[%clk 0:02:58]}  Bf5 {[%clk 0:02:56]} 8. Be2 {[%clk 0:02:56]}  Bg7 {[%clk 0:02:55]} 9. O-O {[%clk 0:02:56]}  O-O {[%clk 0:02:55]} 10. Nbd2 {[%clk 0:02:56]}  Ne4 {[%clk 0:02:53]} 11. Re1 {[%clk 0:02:46]}  Rc8 {[%clk 0:02:44]} 12. Nf1 {[%clk 0:02:35]}  Re8 {[%clk 0:02:40]} 13. Bf4 {[%clk 0:02:28]}  f6 {[%clk 0:02:30]} 14. Ne3 {[%clk 0:02:13]}  e5 {[%clk 0:02:25]} 15. Bh2 {[%clk 0:02:06]}  Be6 {[%clk 0:02:15]} 16. Bf1 {[%clk 0:01:47]}  Qb6 {[%clk 0:02:14]} 17. Rb1 {[%clk 0:01:34]}  Rcd8 {[%clk 0:02:11]} 18. Ng4 {[%clk 0:01:21]}  exd4 {[%clk 0:02:07]} 19. cxd4 {[%clk 0:01:11]}  h5 {[%clk 0:02:04]} 20. Ne3 {[%clk 0:01:06]}  Bf7 {[%clk 0:02:00]} 21. b4 {[%clk 0:00:58]}  f5 {[%clk 0:01:57]} 22. Qd3 {[%clk 0:00:43]}  Nxd4 {[%clk 0:01:56]} 23. Nxd4 {[%clk 0:00:35]}  Qxd4 {[%clk 0:01:55]} 24. Qxd4 {[%clk 0:00:21]}  Bxd4 {[%clk 0:01:56]} 25. Rbc1 {[%clk 0:00:16]}  Rc8 {[%clk 0:01:51]} 26. Bd3 {[%clk 0:00:12]}  Rxc1 {[%clk 0:01:49]} 27. Rxc1 {[%clk 0:00:12]}  Nxf2 {[%clk 0:01:50]} 28. Nc2 {[%clk 0:00:00]}  Nxd3+ {[%clk 0:01:48]} 0-1


[Site "https://www.chess.com"]

[Event "Titled Tuesday Blitz June 13 Late 2023"]
[White "Estrada Nieto, Julian"]
[Black "Zhou, Qiyu"]
[WhiteFideId "5101018"]
[BlackFideId "505161"]
[WhiteElo "2161"]
[BlackElo "2101"]
[Result "1-0"]
[Round "9"]
[TimeControl "180+2"]
[Date "2023.06.13"]
[WhiteClock "0:00:28"]
[BlackClock "0:00:12"]
[Board "78"]

1. e4 {[%clk 0:02:55]}  e5 {[%clk 0:02:53]} 2. Nf3 {[%clk 0:02:55]}  Nc6 {[%clk 0:02:52]} 3. Bb5 {[%clk 0:02:54]}  a6 {[%clk 0:02:52]} 4. Bxc6 {[%clk 0:02:54]}  dxc6 {[%clk 0:02:51]} 5. O-O {[%clk 0:02:54]}  Bg4 {[%clk 0:02:51]} 6. h3 {[%clk 0:02:53]}  h5 {[%clk 0:02:48]} 7. d3 {[%clk 0:02:51]}  Qf6 {[%clk 0:02:44]} 8. Be3 {[%clk 0:02:50]}  Bd6 {[%clk 0:02:38]} 9. Nbd2 {[%clk 0:02:48]}  Ne7 {[%clk 0:02:26]} 10. Re1 {[%clk 0:02:47]}  Bxf3 {[%clk 0:02:15]} 11. Qxf3 {[%clk 0:02:41]}  Qxf3 {[%clk 0:02:10]} 12. Nxf3 {[%clk 0:02:40]}  c5 {[%clk 0:02:09]} 13. a4 {[%clk 0:02:25]}  f6 {[%clk 0:02:03]} 14. Nd2 {[%clk 0:02:09]}  Nc6 {[%clk 0:01:51]} 15. c3 {[%clk 0:02:02]}  O-O-O {[%clk 0:01:49]} 16. Nc4 {[%clk 0:01:57]}  Be7 {[%clk 0:01:49]} 17. Red1 {[%clk 0:01:54]}  Rd7 {[%clk 0:01:46]} 18. Kf1 {[%clk 0:01:53]}  Rhd8 {[%clk 0:01:44]} 19. Ke2 {[%clk 0:01:52]}  g6 {[%clk 0:01:41]} 20. f4 {[%clk 0:01:44]}  Bd6 {[%clk 0:01:28]} 21. fxe5 {[%clk 0:01:40]}  Nxe5 {[%clk 0:01:23]} 22. Nxe5 {[%clk 0:01:36]}  fxe5 {[%clk 0:01:19]} 23. Rf1 {[%clk 0:01:27]}  Rf8 {[%clk 0:01:18]} 24. Rxf8+ {[%clk 0:01:26]}  Bxf8 {[%clk 0:01:19]} 25. Rf1 {[%clk 0:01:25]}  Bg7 {[%clk 0:01:17]} 26. Bxc5 {[%clk 0:01:22]}  b6 {[%clk 0:01:10]} 27. Be3 {[%clk 0:01:08]}  Kd8 {[%clk 0:01:02]} 28. Rd1 {[%clk 0:01:03]}  Ke7 {[%clk 0:00:55]} 29. d4 {[%clk 0:01:01]}  Ke6 {[%clk 0:00:45]} 30. d5+ {[%clk 0:00:54]}  Kd6 {[%clk 0:00:45]} 31. Rf1 {[%clk 0:00:47]}  Re7 {[%clk 0:00:24]} 32. Kd3 {[%clk 0:00:44]}  Rd7 {[%clk 0:00:23]} 33. Kc4 {[%clk 0:00:43]}  c5 {[%clk 0:00:18]} 34. b4 {[%clk 0:00:29]}  b5+ {[%clk 0:00:15]} 35. axb5 {[%clk 0:00:28]}  axb5+ {[%clk 0:00:15]} 36. Kxb5 {[%clk 0:00:28]}  Rb7+ {[%clk 0:00:16]} 37. Kc4 {[%clk 0:00:28]}  cxb4 {[%clk 0:00:15]} 38. cxb4 {[%clk 0:00:28]}  Kd7 {[%clk 0:00:12]} 39. Bc5 {[%clk 0:00:28]} 1-0


[Site "https://www.chess.com"]

[Event "Titled Tuesday Blitz June 13 Late 2023"]
[White "Omariev, Maksim"]
[Black "Rios Escobar, Adan"]
[WhiteFideId "4193423"]
[BlackFideId "3403645"]
[WhiteElo "2364"]
[BlackElo "2492"]
[Result "0-1"]
[Round "9"]
[TimeControl "180+2"]
[Date "2023.06.13"]
[WhiteClock "0:00:04"]
[BlackClock "0:00:46"]
[Board "79"]

1. g4 {[%clk 0:02:55]}  c5 {[%clk 0:02:55]} 2. Bg2 {[%clk 0:02:55]}  Nc6 {[%clk 0:02:56]} 3. c4 {[%clk 0:02:54]}  e5 {[%clk 0:02:54]} 4. Nc3 {[%clk 0:02:54]}  d6 {[%clk 0:02:55]} 5. h3 {[%clk 0:02:53]}  Nge7 {[%clk 0:02:53]} 6. d3 {[%clk 0:02:53]}  g6 {[%clk 0:02:52]} 7. Nf3 {[%clk 0:02:45]}  Bg7 {[%clk 0:02:46]} 8. Be3 {[%clk 0:02:43]}  h6 {[%clk 0:02:35]} 9. Nd2 {[%clk 0:01:51]}  f5 {[%clk 0:02:29]} 10. f4 {[%clk 0:01:46]}  fxg4 {[%clk 0:02:22]} 11. hxg4 {[%clk 0:01:46]}  Bxg4 {[%clk 0:02:22]} 12. Nde4 {[%clk 0:01:43]}  Nf5 {[%clk 0:02:22]} 13. Qd2 {[%clk 0:01:37]}  Ncd4 {[%clk 0:02:19]} 14. O-O-O {[%clk 0:01:29]}  Qa5 {[%clk 0:02:00]} 15. fxe5 {[%clk 0:00:38]}  Bxe2 {[%clk 0:01:55]} 16. Rde1 {[%clk 0:00:21]}  Bg4 {[%clk 0:01:42]} 17. Bxd4 {[%clk 0:00:14]}  cxd4 {[%clk 0:01:42]} 18. Nxd6+ {[%clk 0:00:14]}  Nxd6 {[%clk 0:01:33]} 19. exd6+ {[%clk 0:00:14]}  Kd8 {[%clk 0:01:29]} 20. Nb5 {[%clk 0:00:13]}  Qxa2 {[%clk 0:01:06]} 21. Re7 {[%clk 0:00:13]}  Bf6 {[%clk 0:00:55]} 22. Rxh6 {[%clk 0:00:13]}  Rxh6 {[%clk 0:00:45]} 23. Qxh6 {[%clk 0:00:14]}  Qa1+ {[%clk 0:00:45]} 24. Kc2 {[%clk 0:00:04]}  Qd1# {[%clk 0:00:46]} 0-1


[Site "https://www.chess.com"]

[Event "Titled Tuesday Blitz June 13 Late 2023"]
[White "Avalos Parra, Joao"]
[Black "Camilla_Lee"]
[WhiteFideId "3402541"]
[WhiteElo "2173"]
[BlackElo "2526"]
[Result "1-0"]
[Round "9"]
[TimeControl "180+2"]
[Date "2023.06.13"]
[WhiteClock "0:01:05"]
[BlackClock "0:01:03"]
[Board "89"]

1. d4 {[%clk 0:03:00]}  Nf6 {[%clk 0:02:57]} 2. c4 {[%clk 0:02:57]}  g6 {[%clk 0:02:57]} 3. Nc3 {[%clk 0:02:56]}  d5 {[%clk 0:02:56]} 4. Nf3 {[%clk 0:02:54]}  Bg7 {[%clk 0:02:56]} 5. h4 {[%clk 0:02:54]}  h5 {[%clk 0:02:55]} 6. Bg5 {[%clk 0:02:42]}  Ne4 {[%clk 0:02:53]} 7. cxd5 {[%clk 0:02:39]}  Nxc3 {[%clk 0:02:52]} 8. bxc3 {[%clk 0:02:40]}  Qxd5 {[%clk 0:02:52]} 9. e3 {[%clk 0:02:37]}  c5 {[%clk 0:02:52]} 10. Bd3 {[%clk 0:02:28]}  cxd4 {[%clk 0:02:50]} 11. cxd4 {[%clk 0:02:28]}  Bf5 {[%clk 0:02:41]} 12. O-O {[%clk 0:02:03]}  Nc6 {[%clk 0:02:39]} 13. Rc1 {[%clk 0:01:55]}  O-O {[%clk 0:02:23]} 14. Rc5 {[%clk 0:01:50]}  Qd7 {[%clk 0:02:20]} 15. Bxf5 {[%clk 0:01:42]}  gxf5 {[%clk 0:02:21]} 16. Qb1 {[%clk 0:01:42]}  e6 {[%clk 0:02:18]} 17. d5 {[%clk 0:01:26]}  exd5 {[%clk 0:02:00]} 18. Rd1 {[%clk 0:01:22]}  d4 {[%clk 0:02:00]} 19. exd4 {[%clk 0:01:17]}  Rac8 {[%clk 0:01:42]} 20. Rxf5 {[%clk 0:01:11]}  Rfe8 {[%clk 0:01:10]} 21. Bf6 {[%clk 0:01:09]}  Re2 {[%clk 0:01:03]} 22. Rg5 {[%clk 0:01:05]} 1-0


[Site "https://www.chess.com"]

[Event "Titled Tuesday Blitz June 13 Late 2023"]
[White "Diaz Rosas, Julio Cesar"]
[Black "Slavin, Alexey"]
[WhiteFideId "5105099"]
[BlackFideId "24104388"]
[WhiteElo "2284"]
[BlackElo "2264"]
[Result "1-0"]
[Round "9"]
[TimeControl "180+2"]
[Date "2023.06.13"]
[WhiteClock "0:00:10"]
[BlackClock "0:00:00"]
[Board "90"]

1. b3 {[%clk 0:03:00]}  Nc6 {[%clk 0:02:59]} 2. Bb2 {[%clk 0:03:01]}  Nf6 {[%clk 0:03:00]} 3. g3 {[%clk 0:03:00]}  d6 {[%clk 0:03:01]} 4. Bg2 {[%clk 0:03:00]}  e5 {[%clk 0:03:02]} 5. d3 {[%clk 0:03:00]}  Bd7 {[%clk 0:03:01]} 6. Nf3 {[%clk 0:03:00]}  Be7 {[%clk 0:03:01]} 7. O-O {[%clk 0:02:59]}  Qc8 {[%clk 0:03:02]} 8. Re1 {[%clk 0:02:58]}  Bh3 {[%clk 0:03:01]} 9. Bh1 {[%clk 0:02:58]}  h6 {[%clk 0:03:02]} 10. e4 {[%clk 0:02:58]}  O-O {[%clk 0:03:02]} 11. d4 {[%clk 0:02:58]}  Ng4 {[%clk 0:03:01]} 12. Nbd2 {[%clk 0:02:52]}  Bf6 {[%clk 0:02:33]} 13. Nc4 {[%clk 0:02:45]}  Re8 {[%clk 0:02:31]} 14. dxe5 {[%clk 0:02:43]}  dxe5 {[%clk 0:02:27]} 15. Ne3 {[%clk 0:02:40]}  Nxe3 {[%clk 0:02:25]} 16. Rxe3 {[%clk 0:02:41]}  Qe6 {[%clk 0:02:12]} 17. Rd3 {[%clk 0:02:37]}  Nb4 {[%clk 0:02:04]} 18. Rd2 {[%clk 0:02:35]}  Rad8 {[%clk 0:02:02]} 19. a3 {[%clk 0:02:29]}  Rxd2 {[%clk 0:01:58]} 20. Qxd2 {[%clk 0:02:30]}  Nc6 {[%clk 0:01:53]} 21. Qe2 {[%clk 0:02:21]}  Bg4 {[%clk 0:01:52]} 22. Qb5 {[%clk 0:02:15]}  Qc8 {[%clk 0:01:33]} 23. Re1 {[%clk 0:02:10]}  a6 {[%clk 0:01:33]} 24. Qc5 {[%clk 0:02:08]}  Qe6 {[%clk 0:01:27]} 25. Nd2 {[%clk 0:01:55]}  Rd8 {[%clk 0:01:25]} 26. Nc4 {[%clk 0:01:50]}  b6 {[%clk 0:00:41]} 27. Qe3 {[%clk 0:01:47]}  b5 {[%clk 0:00:29]} 28. Nd2 {[%clk 0:01:44]}  Nd4 {[%clk 0:00:27]} 29. Bxd4 {[%clk 0:01:38]}  Rxd4 {[%clk 0:00:20]} 30. Qc3 {[%clk 0:01:26]}  c6 {[%clk 0:00:18]} 31. Nf1 {[%clk 0:01:23]}  Bg5 {[%clk 0:00:17]} 32. Ne3 {[%clk 0:01:20]}  Bxe3 {[%clk 0:00:15]} 33. Qxe3 {[%clk 0:01:19]}  Qd7 {[%clk 0:00:14]} 34. Bg2 {[%clk 0:01:15]}  Rd1 {[%clk 0:00:13]} 35. Bf1 {[%clk 0:01:12]}  Rxe1 {[%clk 0:00:13]} 36. Qxe1 {[%clk 0:01:13]}  Qd1 {[%clk 0:00:13]} 37. Qxd1 {[%clk 0:01:10]}  Bxd1 {[%clk 0:00:13]} 38. Bd3 {[%clk 0:01:10]}  Bf3 {[%clk 0:00:13]} 39. Kf1 {[%clk 0:01:05]}  Kf8 {[%clk 0:00:13]} 40. Ke1 {[%clk 0:01:05]}  Ke7 {[%clk 0:00:13]} 41. Kd2 {[%clk 0:01:06]}  Kd6 {[%clk 0:00:13]} 42. Ke3 {[%clk 0:01:04]}  Bg4 {[%clk 0:00:13]} 43. b4 {[%clk 0:01:00]}  Be6 {[%clk 0:00:12]} 44. f4 {[%clk 0:00:56]}  f6 {[%clk 0:00:12]} 45. Be2 {[%clk 0:00:52]}  c5 {[%clk 0:00:12]} 46. c3 {[%clk 0:00:45]}  Bb3 {[%clk 0:00:11]} 47. Bg4 {[%clk 0:00:40]}  Bc2 {[%clk 0:00:11]} 48. Bc8 {[%clk 0:00:38]}  a5 {[%clk 0:00:06]} 49. bxa5 {[%clk 0:00:36]}  Kc7 {[%clk 0:00:06]} 50. Be6 {[%clk 0:00:26]}  Kb7 {[%clk 0:00:06]} 51. c4 {[%clk 0:00:16]}  Ka6 {[%clk 0:00:05]} 52. cxb5+ {[%clk 0:00:14]}  Kxb5 {[%clk 0:00:05]} 53. Bd5 {[%clk 0:00:14]}  Kxa5 {[%clk 0:00:05]} 54. Kd2 {[%clk 0:00:14]}  Ba4 {[%clk 0:00:03]} 55. Kc3 {[%clk 0:00:14]}  Bb5 {[%clk 0:00:03]} 56. Kb3 {[%clk 0:00:14]}  Be2 {[%clk 0:00:02]} 57. Bc4 {[%clk 0:00:12]}  Bd1+ {[%clk 0:00:02]} 58. Kc3 {[%clk 0:00:11]}  Ka4 {[%clk 0:00:00]} 59. Kb2 {[%clk 0:00:10]} 1-0


[Site "https://www.chess.com"]

[Event "Titled Tuesday Blitz June 13 Late 2023"]
[White "Shapiro, Viktor"]
[Black "Castella Garcia, Fausto"]
[WhiteFideId "4175700"]
[BlackFideId "3501922"]
[WhiteElo "2212"]
[BlackElo "2245"]
[Result "1-0"]
[Round "9"]
[TimeControl "180+2"]
[Date "2023.06.13"]
[WhiteClock "0:01:15"]
[BlackClock "0:00:33"]
[Board "91"]

1. Nf3 {[%clk 0:03:00]}  c5 {[%clk 0:02:59]} 2. g3 {[%clk 0:03:01]}  g6 {[%clk 0:02:59]} 3. Bg2 {[%clk 0:03:02]}  Bg7 {[%clk 0:02:59]} 4. O-O {[%clk 0:03:02]}  Nf6 {[%clk 0:03:00]} 5. d3 {[%clk 0:03:03]}  d5 {[%clk 0:02:59]} 6. c4 {[%clk 0:03:03]}  dxc4 {[%clk 0:02:57]} 7. dxc4 {[%clk 0:03:03]}  Qxd1 {[%clk 0:02:58]} 8. Rxd1 {[%clk 0:03:03]}  O-O {[%clk 0:02:57]} 9. Nc3 {[%clk 0:03:04]}  Nc6 {[%clk 0:02:52]} 10. Be3 {[%clk 0:03:04]}  Be6 {[%clk 0:02:52]} 11. Nd5 {[%clk 0:02:52]}  Rad8 {[%clk 0:02:22]} 12. Ng5 {[%clk 0:02:49]}  Bxd5 {[%clk 0:02:18]} 13. cxd5 {[%clk 0:02:49]}  Nb4 {[%clk 0:02:19]} 14. Bxc5 {[%clk 0:02:47]}  Nbxd5 {[%clk 0:02:19]} 15. e4 {[%clk 0:02:45]}  b6 {[%clk 0:02:02]} 16. Ba3 {[%clk 0:02:41]}  Nc7 {[%clk 0:01:59]} 17. Bxe7 {[%clk 0:02:40]}  Rxd1+ {[%clk 0:01:59]} 18. Rxd1 {[%clk 0:02:40]}  Re8 {[%clk 0:02:00]} 19. Bd6 {[%clk 0:02:26]}  Nb5 {[%clk 0:01:55]} 20. e5 {[%clk 0:02:09]}  Nxd6 {[%clk 0:01:35]} 21. exd6 {[%clk 0:01:52]}  Rd8 {[%clk 0:01:31]} 22. Bc6 {[%clk 0:01:49]}  h6 {[%clk 0:01:23]} 23. Nf3 {[%clk 0:01:48]}  Nd7 {[%clk 0:01:17]} 24. b4 {[%clk 0:01:45]}  a5 {[%clk 0:01:08]} 25. bxa5 {[%clk 0:01:43]}  bxa5 {[%clk 0:01:07]} 26. a4 {[%clk 0:01:30]}  Ne5 {[%clk 0:00:57]} 27. Nxe5 {[%clk 0:01:30]}  Bxe5 {[%clk 0:00:57]} 28. d7 {[%clk 0:01:30]}  Kg7 {[%clk 0:00:52]} 29. f4 {[%clk 0:01:29]}  Bf6 {[%clk 0:00:51]} 30. Rd5 {[%clk 0:01:27]}  Bc3 {[%clk 0:00:49]} 31. Kf2 {[%clk 0:01:27]}  Bb4 {[%clk 0:00:49]} 32. Ke3 {[%clk 0:01:27]}  Kf6 {[%clk 0:00:49]} 33. Kd4 {[%clk 0:01:27]}  Ke7 {[%clk 0:00:49]} 34. Kc4 {[%clk 0:01:21]}  Rb8 {[%clk 0:00:46]} 35. Re5+ {[%clk 0:01:17]}  Kd6 {[%clk 0:00:33]} 36. Re8 {[%clk 0:01:15]} 1-0


[Site "https://www.chess.com"]

[Event "Titled Tuesday Blitz June 13 Late 2023"]
[White "kiwibobo"]
[Black "Peycheva, Gergana"]
[BlackFideId "2916711"]
[WhiteElo "2314"]
[BlackElo "2216"]
[Result "0-1"]
[Round "9"]
[TimeControl "180+2"]
[Date "2023.06.13"]
[WhiteClock "0:00:02"]
[BlackClock "0:00:06"]
[Board "92"]

1. e4 {[%clk 0:03:00]}  c5 {[%clk 0:02:56]} 2. Nf3 {[%clk 0:03:01]}  Nc6 {[%clk 0:02:55]} 3. d4 {[%clk 0:03:01]}  cxd4 {[%clk 0:02:56]} 4. Nxd4 {[%clk 0:03:02]}  g6 {[%clk 0:02:56]} 5. Nc3 {[%clk 0:03:02]}  Bg7 {[%clk 0:02:48]} 6. Be3 {[%clk 0:03:03]}  Nf6 {[%clk 0:02:49]} 7. Nxc6 {[%clk 0:03:04]}  bxc6 {[%clk 0:02:47]} 8. e5 {[%clk 0:03:04]}  Ng8 {[%clk 0:02:46]} 9. Bd4 {[%clk 0:03:04]}  Qc7 {[%clk 0:02:46]} 10. Qe2 {[%clk 0:03:04]}  Nh6 {[%clk 0:02:45]} 11. g4 {[%clk 0:03:04]}  O-O {[%clk 0:02:42]} 12. O-O-O {[%clk 0:02:56]}  c5 {[%clk 0:02:37]} 13. Nd5 {[%clk 0:02:52]}  Qd8 {[%clk 0:02:02]} 14. Bxc5 {[%clk 0:02:49]}  d6 {[%clk 0:02:00]} 15. exd6 {[%clk 0:02:46]}  exd6 {[%clk 0:01:59]} 16. Ne7+ {[%clk 0:02:43]}  Kh8 {[%clk 0:01:59]} 17. Rxd6 {[%clk 0:02:14]}  Qa5 {[%clk 0:01:58]} 18. Bd4 {[%clk 0:01:40]}  Bxg4 {[%clk 0:01:57]} 19. Qe3 {[%clk 0:01:31]}  Rfe8 {[%clk 0:01:39]} 20. Bg2 {[%clk 0:01:22]}  Nf5 {[%clk 0:01:35]} 21. Bxg7+ {[%clk 0:01:11]}  Kxg7 {[%clk 0:00:58]} 22. Nxf5+ {[%clk 0:01:06]}  Bxf5 {[%clk 0:00:54]} 23. Qc3+ {[%clk 0:01:06]}  Qxc3 {[%clk 0:00:53]} 24. bxc3 {[%clk 0:01:05]}  Rac8 {[%clk 0:00:52]} 25. Kd2 {[%clk 0:00:46]}  Rcd8 {[%clk 0:00:50]} 26. Rxd8 {[%clk 0:00:41]}  Rxd8+ {[%clk 0:00:51]} 27. Kc1 {[%clk 0:00:40]}  Kf6 {[%clk 0:00:45]} 28. Rd1 {[%clk 0:00:36]}  Rc8 {[%clk 0:00:44]} 29. Kb2 {[%clk 0:00:35]}  Rb8+ {[%clk 0:00:43]} 30. Ka3 {[%clk 0:00:35]}  Be6 {[%clk 0:00:41]} 31. Rd4 {[%clk 0:00:27]}  Rc8 {[%clk 0:00:38]} 32. Kb4 {[%clk 0:00:26]}  Bxa2 {[%clk 0:00:36]} 33. Rd7 {[%clk 0:00:24]}  Be6 {[%clk 0:00:20]} 34. Rxa7 {[%clk 0:00:23]}  Rc4+ {[%clk 0:00:20]} 35. Ka3 {[%clk 0:00:20]}  Rxc3+ {[%clk 0:00:20]} 36. Kb2 {[%clk 0:00:21]}  Rc5 {[%clk 0:00:17]} 37. Ra6 {[%clk 0:00:21]}  Kg5 {[%clk 0:00:17]} 38. c3 {[%clk 0:00:18]}  Bf5 {[%clk 0:00:16]} 39. Bf1 {[%clk 0:00:16]}  Re5 {[%clk 0:00:14]} 40. c4 {[%clk 0:00:15]}  Re1 {[%clk 0:00:14]} 41. Ra1 {[%clk 0:00:14]}  Re8 {[%clk 0:00:09]} 42. Kc3 {[%clk 0:00:13]}  Kf4 {[%clk 0:00:09]} 43. c5 {[%clk 0:00:12]}  Kf3 {[%clk 0:00:09]} 44. c6 {[%clk 0:00:10]}  Kxf2 {[%clk 0:00:09]} 45. c7 {[%clk 0:00:09]}  Rc8 {[%clk 0:00:08]} 46. Bd3 {[%clk 0:00:04]}  Rxc7+ {[%clk 0:00:08]} 47. Kd2 {[%clk 0:00:04]}  Rd7 {[%clk 0:00:08]} 48. Ra3 {[%clk 0:00:02]}  Kg2 {[%clk 0:00:06]} 0-1


[Site "https://www.chess.com"]

[Event "Titled Tuesday Blitz June 13 Late 2023"]
[White "DampFalcon"]
[Black "Jakic, Ivan"]
[BlackFideId "14504901"]
[WhiteElo "2219"]
[BlackElo "2365"]
[Result "0-1"]
[Round "9"]
[TimeControl "180+2"]
[Date "2023.06.13"]
[WhiteClock "0:01:58"]
[BlackClock "0:01:46"]
[Board "93"]

1. e4 {[%clk 0:03:00]}  c5 {[%clk 0:02:59]} 2. Nf3 {[%clk 0:03:01]}  d6 {[%clk 0:02:59]} 3. d4 {[%clk 0:03:01]}  cxd4 {[%clk 0:02:59]} 4. Qxd4 {[%clk 0:03:02]}  Nc6 {[%clk 0:02:59]} 5. Bb5 {[%clk 0:03:02]}  Bd7 {[%clk 0:03:00]} 6. Qd3 {[%clk 0:03:03]}  Nf6 {[%clk 0:03:00]} 7. c4 {[%clk 0:03:03]}  g6 {[%clk 0:02:59]} 8. Nc3 {[%clk 0:03:04]}  Bg7 {[%clk 0:03:00]} 9. O-O {[%clk 0:03:04]}  O-O {[%clk 0:03:00]} 10. h3 {[%clk 0:03:04]}  a6 {[%clk 0:02:59]} 11. Bxc6 {[%clk 0:03:05]}  Bxc6 {[%clk 0:02:59]} 12. Nd4 {[%clk 0:03:05]}  Nd7 {[%clk 0:02:58]} 13. Be3 {[%clk 0:03:06]}  Nc5 {[%clk 0:02:55]} 14. Qc2 {[%clk 0:03:06]}  Rc8 {[%clk 0:02:55]} 15. Rac1 {[%clk 0:03:05]}  Qa5 {[%clk 0:02:53]} 16. Rfd1 {[%clk 0:02:56]}  Ne6 {[%clk 0:02:52]} 17. Nxe6 {[%clk 0:02:55]}  fxe6 {[%clk 0:02:52]} 18. Qb3 {[%clk 0:02:56]}  Bxc3 {[%clk 0:02:46]} 19. Rxc3 {[%clk 0:02:54]}  Bxe4 {[%clk 0:02:45]} 20. Bh6 {[%clk 0:02:54]}  Rf7 {[%clk 0:02:41]} 21. Re3 {[%clk 0:02:54]}  Qf5 {[%clk 0:02:36]} 22. f3 {[%clk 0:02:39]}  Bc6 {[%clk 0:02:22]} 23. Ree1 {[%clk 0:02:31]}  Qh5 {[%clk 0:02:03]} 24. Qe3 {[%clk 0:02:17]}  e5 {[%clk 0:01:56]} 25. Kh2 {[%clk 0:02:07]}  Bxf3 {[%clk 0:01:55]} 26. gxf3 {[%clk 0:02:01]}  Rxf3 {[%clk 0:01:53]} 27. Qg5 {[%clk 0:02:01]}  Qxh3+ {[%clk 0:01:46]} 28. Kg1 {[%clk 0:01:58]}  Rg3+ {[%clk 0:01:46]} 0-1


[Site "https://www.chess.com"]